fUSD/lending_fUSD_20240611
["ID","MTS","AMOUNT","RATE_DAILY","PERIOD"]
[329115677,1718118649246,-500.0,0.00024657,2]
[329115678,1718118649255,-1017.33,0.00024657,2]
[329115679,1718118649267,-500.0,0.00024657,2]
[329115680,1718118649277,-198.641556,0.00024657,7]
[329115681,1718118649287,-198.641556,0.00024657,7]
[329115682,1718118649298,-500.0,0.00024657,2]
[329115683,1718118649309,-500.0,0.00024657,2]
[329115684,1718118649320,-678.4,0.00024657,2]
[329115685,1718118649335,-500.0,0.00024657,2]
[329115686,1718118649347,-198.641556,0.00024657,7]
[329115687,1718118649356,-198.641556,0.00024657,7]
[329115688,1718118649367,-954.13,0.00024657,2]
[329115689,1718118649377,-500.0,0.00024657,2]
[329115690,1718118649387,-151.0,0.00024657,7]
[329115691,1718118649396,-500.0,0.00024657,2]
[329115692,1718118649408,-151.0,0.00024657,7]
[329115693,1718118649418,-500.0,0.00024657,2]
[329115694,1718118649428,-715.09,0.00024657,2]
[329115695,1718118649437,-1636.78,0.00024657,2]
[329115696,1718118649448,-500.0,0.00024657,2]
[329115697,1718118649457,-500.0,0.00024657,2]
[329115698,1718118649469,-500.0,0.00024657,2]
[329115699,1718118649479,-1555.56,0.00024657,2]
[329115700,1718118649489,-500.0,0.00024657,2]
[329115701,1718118649499,-500.0,0.00024657,2]
[329115702,1718118649509,-500.0,0.00024657,2]
[329115703,1718118649518,-500.0,0.00024657,2]
[329115704,1718118649528,-500.0,0.00024657,2]
[329115705,1718118649538,-500.0,0.00024657,2]
[329115706,1718118649548,-1141.96,0.00024657,2]
[329115707,1718118649558,-500.0,0.00024657,2]
[329115708,1718118649567,-199.155287,0.00024657,7]
[329115709,1718118649578,-500.0,0.00024657,2]
[329115710,1718118649589,-500.0,0.00024657,2]
[329115711,1718118649602,-199.155287,0.00024657,7]
[329115712,1718118649612,-507.52527989,0.00024657,2]
[329115713,1718118649622,-199.155287,0.00024657,7]
[329115714,1718118649637,-199.155287,0.00024657,7]
[329115715,1718118649648,-500.0,0.00024657,2]
[329115716,1718118649658,-500.0,0.00024657,2]
[329115717,1718118649668,-500.0,0.00024657,2]
[329115718,1718118649678,-500.0,0.00024657,2]
[329115719,1718118649688,-852.09,0.00024657,2]
[329115720,1718118649698,-500.0,0.00024657,2]
[329115721,1718118649709,-500.0,0.00024657,2]
[329115722,1718118649719,-1356.07,0.00024657,2]
[329115723,1718118649730,-496.1581829,0.00024657,2]
[329115724,1718118649741,-151.0,0.00024657,7]
[329115725,1718118649751,-151.0,0.00024657,7]
[329115726,1718118649762,-500.0,0.00024657,2]
[329115727,1718118649772,-500.0,0.00024657,2]
[329115728,1718118649782,-500.0,0.00024657,2]
[329115729,1718118649792,-500.0,0.00024657,2]
[329115730,1718118649803,-500.0,0.00024657,2]
[329115731,1718118649813,-519.09,0.00024657,2]
[329115732,1718118649822,-795.97,0.00024657,2]
[329115733,1718118649832,-500.0,0.00024657,2]
[329115734,1718118649855,-500.0,0.00024657,2]
[329115735,1718118649870,-500.0,0.00024657,2]
[329115736,1718118649880,-1266.07,0.00024657,2]
[329115737,1718118649890,-500.0,0.00024657,2]
[329115738,1718118649900,-609.99,0.00024657,2]
[329115739,1718118649910,-500.0,0.00024657,2]
[329115740,1718118649920,-710.76,0.00024657,2]
[329115741,1718118649930,-927.1,0.00024657,2]
[329115742,1718118649941,-500.0,0.00024657,2]
[329115743,1718118649951,-667.36,0.00024657,2]
[329115744,1718118649962,-533.11804707,0.00024657,2]
[329115745,1718118649972,-630.26,0.00024657,2]
[329115746,1718118649982,-2126.54,0.00024657,2]
[329115747,1718118649992,-512.56,0.00024657,2]
[329115748,1718118650002,-500.0,0.00024657,2]
[329115749,1718118650012,-776.3,0.00024657,2]
[329115750,1718118650023,-500.0,0.00024657,2]
[329115751,1718118650033,-151.0,0.00024657,7]
[329115752,1718118650044,-151.0,0.00024657,7]
[329115753,1718118650055,-506.42,0.00024657,2]
[329115754,1718118650065,-500.0,0.00024657,2]
[329115755,1718118650076,-151.0,0.00024657,7]
[329115756,1718118650086,-151.0,0.00024657,7]
[329115757,1718118650099,-500.0,0.00024657,2]
[329115758,1718118650109,-500.0,0.00024657,2]
[329115759,1718118650119,-500.0,0.00024657,2]
[329115761,1718118650356,-500.0,0.00024657,2]
[329115762,1718118650374,-1690.59,0.00024657,2]
[329115763,1718118650385,-151.0,0.00024657,7]
[329115764,1718118650396,-151.0,0.00024657,7]
[329115765,1718118650408,-500.0,0.00024657,2]
[329115766,1718118650418,-1072.56,0.00024657,2]
[329115767,1718118650428,-500.0,0.00024657,2]
[329115768,1718118650438,-500.0,0.00024657,2]
[329115769,1718118650448,-588.13,0.00024657,2]
[329115770,1718118650459,-151.0,0.00024657,7]
[329115771,1718118650469,-500.0,0.00024657,2]
[329115772,1718118650479,-151.0,0.00024657,7]
[329115773,1718118650489,-155.013315,0.00024657,7]
[329115774,1718118650499,-728.09,0.00024657,2]
[329115775,1718118650509,-809.87,0.00024657,2]
[329115776,1718118650520,-500.0,0.00024657,2]
[329115777,1718118650531,-2352.49,0.00024657,2]
[329115778,1718118650542,-2274.76,0.00024657,2]
[329115779,1718118650553,-500.0,0.00024657,2]
[329115780,1718118650563,-612.05004595,0.00024657,2]
[329115781,1718118650573,-972.08,0.00024657,2]
[329115782,1718118650584,-151.0,0.00024657,7]
[329115783,1718118650597,-559.17,0.00024657,2]
[329115784,1718118650608,-500.0,0.00024657,2]
[329115785,1718118650622,-500.0,0.00024657,2]
[329115786,1718118650633,-676.75,0.00024657,2]
[329115787,1718118650644,-500.0,0.00024657,2]
[329115788,1718118650655,-500.0,0.00024657,2]
[329115789,1718118650666,-598.73,0.00024657,2]
[329115790,1718118650677,-500.0,0.00024657,2]
[329115791,1718118650688,-1374.88,0.00024657,2]
[329115792,1718118650698,-500.0,0.00024657,2]
[329115793,1718118650709,-500.0,0.00024657,2]
[329115794,1718118650720,-533.18592714,0.00024657,2]
[329115795,1718118650730,-500.0,0.00024657,2]
[329115796,1718118650740,-500.0,0.00024657,2]
[329115797,1718118650750,-1536.38,0.00024657,2]
[329115798,1718118650761,-961.62,0.00024657,2]
[329115799,1718118650771,-532.85,0.00024657,2]
[329115800,1718118650781,-500.0,0.00024657,2]
[329115801,1718118650791,-6817.43,0.00024657,2]
[329115802,1718118650801,-4939.32,0.00024657,2]
[329115803,1718118650812,-1225.21,0.00024657,2]
[329115804,1718118650822,-500.0,0.00024657,2]
[329115805,1718118650832,-1933.71,0.00024657,2]
[329115806,1718118650859,-500.0,0.00024657,2]
[329115807,1718118650869,-257.68994827,0.00024657,2]
[329115808,1718118650880,-500.0,0.00024657,2]
[329115809,1718118650890,-151.0,0.00024657,7]
[329115810,1718118650900,-500.0,0.00024657,2]
[329115811,1718118650910,-500.0,0.00024657,2]
[329115812,1718118650920,-500.0,0.00024657,2]
[329115813,1718118650930,-500.0,0.00024657,2]
[329115814,1718118650940,-4124.35,0.00024657,2]
[329115815,1718118650950,-1290.36,0.00024657,2]
[329115816,1718118650961,-500.0,0.00024657,2]
[329115817,1718118650971,-151.0,0.00024657,7]
[329115818,1718118650982,-500.0,0.00024657,2]
[329115819,1718118650994,-178.58053481,0.00024657,2]
[329115820,1718118651005,-552.99117549,0.00024657,2]
[329115821,1718118651015,-2264.39,0.00024657,2]
[329115822,1718118651026,-736.36,0.00024657,2]
[329115823,1718118651036,-500.0,0.00024657,2]
[329115824,1718118651046,-500.0,0.00024657,2]
[329115825,1718118651056,-500.0,0.00024657,2]
[329115826,1718118651066,-500.0,0.00024657,2]
[329115827,1718118651078,-500.0,0.00024657,2]
[329115828,1718118651088,-153.025482,0.00024657,7]
[329115829,1718118651101,-153.025482,0.00024657,7]
[329115830,1718118651112,-500.0,0.00024657,2]
[329115831,1718118651124,-2769.6,0.00024657,2]
[329115832,1718118651134,-500.0,0.00024657,2]
[329115833,1718118651145,-500.0,0.00024657,2]
[329115834,1718118651156,-502.33,0.00024657,2]
[329115835,1718118651166,-500.0,0.00024657,2]
[329115836,1718118651176,-14561.37,0.00024657,2]
[329115837,1718118651193,-500.0,0.00024657,2]
[329115838,1718118651203,-445.26766574,0.00024657,2]
[329115839,1718118651214,-10974.51,0.00024657,2]
[329115840,1718118651224,-500.0,0.00024657,2]
[329115841,1718118651235,-537.15004844,0.00024657,2]
[329115842,1718118651245,-153.025482,0.00024657,7]
[329115843,1718118651255,-500.0,0.00024657,2]
[329115844,1718118651265,-153.025482,0.00024657,7]
[329115845,1718118651275,-500.0,0.00024657,2]
[329115846,1718118651285,-500.0,0.00024657,2]
[329115847,1718118651295,-500.0,0.00024657,2]
[329115848,1718118651305,-418.89,0.00024657,2]
[329115849,1718118651315,-500.0,0.00024657,2]
[329115850,1718118651325,-4897.52,0.00024657,2]
[329115851,1718118651337,-1344.39,0.00024657,2]
[329115852,1718118651349,-500.0,0.00024657,2]
[329115853,1718118651359,-1100.38,0.00024657,2]
[329115854,1718118651369,-151.0,0.00024657,7]
[329115855,1718118651379,-151.0,0.00024657,7]
[329115856,1718118651388,-500.0,0.00024657,2]
[329115857,1718118651398,-500.0,0.00024657,2]
[329115858,1718118651411,-11451.17,0.00024657,2]
[329115859,1718118651420,-654.44,0.00024657,2]
[329115860,1718118651430,-500.0,0.00024657,2]
[329115861,1718118651440,-500.0,0.00024657,2]
[329115862,1718118651450,-208.60659293,0.00024657,2]
[329115863,1718118651460,-176.779783,0.00024657,7]
[329115864,1718118651470,-176.779783,0.00024657,7]
[329115865,1718118651480,-2392.18,0.00024657,2]
[329115866,1718118651490,-151.0,0.00024657,7]
[329115867,1718118651504,-500.0,0.00024657,2]
[329115868,1718118651513,-151.0,0.00024657,7]
[329115869,1718118651523,-176.779783,0.00024657,7]
[329115870,1718118651533,-1953.67,0.00024657,2]
[329115871,1718118651543,-176.779783,0.00024657,7]
[329115872,1718118651553,-1111.3,0.00024657,2]
[329115873,1718118651563,-1178.84,0.00024657,2]
[329115874,1718118651573,-1026.36,0.00024657,2]
[329115875,1718118651583,-500.0,0.00024657,2]
[329115876,1718118651598,-1183.03,0.00024657,2]
[329115877,1718118651608,-897.74,0.00024657,2]
[329115878,1718118651617,-500.0,0.00024657,2]
[329115879,1718118651627,-500.0,0.00024657,2]
[329115880,1718118651636,-500.0,0.00024657,2]
[329115881,1718118651646,-500.0,0.00024657,2]
[329115882,1718118651656,-5314.95,0.00024657,2]
[329115883,1718118651668,-500.0,0.00024657,2]
[329115884,1718118651677,-500.0,0.00024657,2]
[329115885,1718118651687,-500.0,0.00024657,2]
[329115886,1718118651696,-4494.99,0.00024657,2]
[329115887,1718118651707,-3582.93,0.00024657,2]
[329115888,1718118651717,-500.0,0.00024657,2]
[329115889,1718118651727,-4095.94,0.00024657,2]
[329115890,1718118651739,-529.08481804,0.00024657,2]
[329115891,1718118651750,-500.0,0.00024657,2]
[329115892,1718118651760,-500.0,0.00024657,2]
[329115893,1718118651770,-500.0,0.00024657,2]
[329115894,1718118651780,-654.64,0.00024657,2]
[329115895,1718118651790,-500.0,0.00024657,2]
[329115896,1718118651800,-1644.37,0.00024657,2]
[329115897,1718118651810,-500.0,0.00024657,2]
[329115898,1718118651820,-5585.1,0.00024657,2]
[329115899,1718118651830,-587.77,0.00024657,2]
[329115900,1718118651848,-500.0,0.00024657,2]
[329115901,1718118651863,-1468.26,0.00024657,2]
[329115902,1718118651873,-1418.14,0.00024657,2]
[329115903,1718118651884,-500.0,0.00024657,2]
[329115904,1718118651894,-1316.52,0.00024657,2]
[329115905,1718118651903,-151.735321,0.00024657,7]
[329115906,1718118651913,-708.2,0.00024657,2]
[329115907,1718118651922,-500.0,0.00024657,2]
[329115908,1718118651932,-8235.83,0.00024657,2]
[329115909,1718118651942,-14997.96,0.00024657,2]
[329115910,1718118651952,-604.21,0.00024657,2]
[329115911,1718118651962,-4209.46,0.00024657,2]
[329115912,1718118651971,-847.09,0.00024657,2]
[329115913,1718118651981,-500.0,0.00024657,2]
[329115914,1718118651991,-2009.63,0.00024657,2]
[329115915,1718118652001,-5249.07,0.00024657,2]
[329115916,1718118652010,-3458.3,0.00024657,2]
[329115917,1718118652021,-759.85,0.00024657,2]
[329115918,1718118652031,-548.6626622,0.00024657,2]
[329115919,1718118652041,-500.0,0.00024657,2]
[329115920,1718118652051,-517.95728898,0.00024657,2]
[329115921,1718118652061,-642.47,0.00024657,2]
[329115922,1718118652071,-3096.82,0.00024657,2]
[329115923,1718118652080,-965.64,0.00024657,2]
[329115924,1718118652091,-500.0,0.00024657,2]
[329115925,1718118652105,-500.0,0.00024657,2]
[329115926,1718118652114,-500.0,0.00024657,2]
[329115927,1718118652123,-500.0,0.00024657,2]
[329115928,1718118652133,-1841.66,0.00024657,2]
[329115929,1718118652143,-2174.73,0.00024657,2]
[329115930,1718118652157,-500.0,0.00024657,2]
[329115931,1718118652167,-550.54,0.00024657,2]
[329115932,1718118652177,-1090.67,0.00024657,2]
[329115933,1718118652187,-500.0,0.00024657,2]
[329115934,1718118652198,-500.0,0.00024657,2]
[329115935,1718118652207,-1507.57,0.00024657,2]
[329115936,1718118652217,-500.0,0.00024657,2]
[329115937,1718118652227,-500.0,0.00024657,2]
[329115938,1718118652236,-511.94363668,0.00024657,2]
[329115939,1718118652246,-500.0,0.00024657,2]
[329115940,1718118652258,-2370.46,0.00024657,2]
[329115941,1718118652267,-578.9,0.00024657,2]
[329115942,1718118652277,-2078.3,0.00024657,2]
[329115943,1718118652288,-4930.99,0.00024657,2]
[329115944,1718118652298,-2762.49,0.00024657,2]
[329115945,1718118652309,-151.0,0.00024657,7]
[329115946,1718118652320,-571.61861516,0.00024657,2]
[329115947,1718118652333,-151.0,0.00024657,7]
[329115948,1718118652343,-1474.68,0.00024657,2]
[329115949,1718118652355,-500.0,0.00024657,2]
[329115950,1718118652366,-961.43,0.00024657,2]
[329115951,1718118652376,-500.0,0.00024657,2]
[329115952,1718118652387,-151.0,0.00024657,7]
[329115953,1718118652398,-500.0,0.00024657,2]
[329115954,1718118652409,-151.0,0.00024657,7]
[329115955,1718118652419,-1996.27,0.00024657,2]
[329115956,1718118652429,-2091.47,0.00024657,2]
[329115957,1718118652439,-714.71,0.00024657,2]
[329115958,1718118652449,-500.0,0.00024657,2]
[329115959,1718118652459,-605.72,0.00024657,2]
[329115960,1718118652468,-721.26,0.00024657,2]
[329115961,1718118652478,-500.0,0.00024657,2]
[329115962,1718118652488,-877.41,0.00024657,2]
[329115963,1718118652499,-500.0,0.00024657,2]
[329115964,1718118652510,-1640.03,0.00024657,2]
[329115965,1718118652520,-590.31,0.00024657,2]
[329115966,1718118652530,-919.79,0.00024657,2]
[329115967,1718118652539,-1662.29,0.00024657,2]
[329115968,1718118652550,-151.0,0.00024657,7]
[329115969,1718118652560,-151.0,0.00024657,7]
[329115970,1718118652570,-500.0,0.00024657,2]
[329115971,1718118652580,-1930.6,0.00024657,2]
[329115972,1718118652590,-500.0,0.00024657,2]
[329115973,1718118652602,-508.13195026,0.00024657,2]
[329115974,1718118652612,-947.43,0.00024657,2]
[329115975,1718118652622,-506.81,0.00024657,2]
[329115976,1718118652632,-508.21589752,0.00024657,2]
[329115977,1718118652642,-1254.88,0.00024657,2]
[329115978,1718118652652,-506.81,0.00024657,2]
[329115979,1718118652662,-151.0,0.00024657,7]
[329115980,1718118652673,-151.0,0.00024657,7]
[329115981,1718118652684,-506.81,0.00024657,2]
[329115982,1718118652694,-500.0,0.00024657,2]
[329115983,1718118652704,-194.76537,0.00024657,7]
[329115984,1718118652715,-506.81,0.00024657,2]
[329115985,1718118652726,-194.76537,0.00024657,7]
[329115986,1718118652737,-506.81,0.00024657,2]
[329115987,1718118652747,-500.0,0.00024657,2]
[329115988,1718118652757,-500.0,0.00024657,2]
[329115989,1718118652767,-506.81,0.00024657,2]
[329115990,1718118652777,-506.81,0.00024657,2]
[329115991,1718118652788,-506.81,0.00024657,2]
[329115992,1718118652799,-506.81,0.00024657,2]
[329115993,1718118652809,-1907.7,0.00024657,2]
[329115994,1718118652819,-506.81,0.00024657,2]
[329115995,1718118652829,-506.81,0.00024657,2]
[329115996,1718118652840,-507.88553374,0.00024657,2]
[329115997,1718118652857,-194.76537,0.00024657,7]
[329115998,1718118652870,-506.81,0.00024657,2]
[329115999,1718118652881,-506.81,0.00024657,2]
[329116000,1718118652891,-194.76537,0.00024657,7]
[329116001,1718118652901,-506.81,0.00024657,2]
[329116002,1718118652911,-215.40471,0.00024657,7]
[329116003,1718118652921,-5773.26,0.00024657,2]
[329116004,1718118652931,-506.81,0.00024657,2]
[329116005,1718118652941,-500.0,0.00024657,2]
[329116006,1718118652951,-6394.63,0.00024657,2]
[329116007,1718118652962,-506.81,0.00024657,2]
[329116008,1718118652971,-506.81,0.00024657,2]
[329116009,1718118652981,-506.81,0.00024657,2]
[329116010,1718118653056,-506.81,0.00024657,2]
[329116011,1718118653067,-784.81,0.00024657,2]
[329116012,1718118653077,-506.81,0.00024657,2]
[329116013,1718118653087,-506.81,0.00024657,2]
[329116014,1718118653098,-506.81,0.00024657,2]
[329116015,1718118653108,-5271.24861144,0.00024657,2]
[329116016,1718118653135,-2971.85138856,0.00024657,2]
[329116017,1718118653145,-506.81,0.00024657,2]
[329116018,1718118653156,-2802.58,0.00024657,2]
[329116019,1718118653166,-506.99448514,0.00024657,2]
[329116020,1718118653176,-617.81,0.00024657,2]
[329116021,1718118653186,-2082.43,0.00024657,2]
[329116022,1718118653196,-500.0,0.00024657,2]
[329116023,1718118653206,-37102.72,0.00024657,2]
[329116024,1718118653216,-594.63,0.00024657,2]
[329116025,1718118653225,-500.0,0.00024657,2]
[329116026,1718118653235,-500.0,0.00024657,2]
[329116027,1718118653246,-500.0,0.00024657,2]
[329116028,1718118653256,-512.34380614,0.00024657,2]
[329116029,1718118653265,-552.54696181,0.00024657,2]
[329116030,1718118653274,-500.0,0.00024657,2]
[329116031,1718118653283,-512.82354156,0.00024657,2]
[329116032,1718118653295,-545.29645844,0.00024657,2]
[329116033,1718118653305,-424.58407457,0.00024657,2]
[329116034,1718118653318,-75.41592543,0.00024657,2]
[329116035,1718118653331,-439.87112909,0.00024657,2]
[329116036,1718118653505,-2326.78922741,0.00024657,2]
[329116037,1718118653518,-215.4896435,0.00024657,2]
[329116038,1718118653528,-151.0,0.00024657,7]
[329116039,1718118653539,-151.0,0.00024657,7]
[329116040,1718118653550,-511.7803565,0.00024657,2]
[329116041,1718118653562,-741.3170906,0.00024657,2]
[329116042,1718118653575,-831.6225529,0.00024657,2]
[329116043,1718118653586,-168.3840771,0.00024657,2]
[329116044,1718118653599,-331.6159229,0.00024657,2]
[329116045,1718118653608,-552.88,0.00024657,2]
[329116046,1718118653619,-111.4440771,0.00024657,2]
[329116047,1718118653925,-388.5559229,0.00024657,2]
[329116048,1718118653938,-414.19927042,0.00024657,2]
[329116049,1718118653952,-2049.27072958,0.00024657,2]
[329116050,1718118653962,-500.0,0.00024657,2]
[329116051,1718118653973,-500.0,0.00024657,2]
[329116052,1718118653983,-14950.63,0.00024657,2]
[329116053,1718118653994,-1130.43,0.00024657,2]
[329116054,1718118654005,-650.45,0.00024657,2]
[329116055,1718118654015,-621.79,0.00024657,2]
[329116056,1718118654024,-500.0,0.00024657,2]
[329116057,1718118654034,-954.61776108,0.00024657,2]
[329116058,1718118654046,-1107.68259837,0.00024657,2]
[329116059,1718118654143,-522.10964055,0.00024657,2]
[329116060,1718118654154,-500.0,0.00024657,2]
[329116061,1718118654164,-500.0,0.00024657,2]
[329116062,1718118654174,-500.0,0.00024657,2]
[329116063,1718118654184,-151.0,0.00024657,7]
[329116064,1718118654194,-553.13,0.00024657,2]
[329116065,1718118654204,-500.0,0.00024657,2]
[329116066,1718118654214,-2362.32,0.00024657,2]
[329116067,1718118654224,-2039.6,0.00024657,2]
[329116068,1718118654235,-151.0,0.00024657,7]
[329116069,1718118654244,-349.83720183,0.00024657,2]
[329116070,1718118654254,-1089.31,0.00024657,2]
[329116071,1718118654264,-172.070488,0.00024657,7]
[329116072,1718118654274,-172.070488,0.00024657,7]
[329116073,1718118654288,-500.0,0.00024657,2]
[329116074,1718118654298,-500.0,0.00024657,2]
[329116075,1718118654308,-500.0,0.00024657,2]
[329116076,1718118654319,-151.0,0.00024657,7]
[329116077,1718118654333,-151.0,0.00024657,7]
[329116078,1718118654344,-540.82307747,0.00024657,2]
[329116079,1718118654357,-4400.95,0.00024657,2]
[329116080,1718118654367,-835.71,0.00024657,2]
[329116081,1718118654376,-3103.72,0.00024657,2]
[329116082,1718118654386,-500.0,0.00024657,2]
[329116083,1718118654397,-172.070488,0.00024657,7]
[329116084,1718118654407,-500.0,0.00024657,2]
[329116085,1718118654418,-500.0,0.00024657,2]
[329116086,1718118654428,-172.070488,0.00024657,7]
[329116087,1718118654439,-500.0,0.00024657,2]
[329116088,1718118654451,-974.61,0.00024657,2]
[329116089,1718118654463,-500.0,0.00024657,2]
[329116090,1718118654473,-3205.17,0.00024657,2]
[329116091,1718118654484,-2402.6,0.00024657,2]
[329116092,1718118654494,-534.09,0.00024657,2]
[329116093,1718118654506,-500.0,0.00024657,2]
[329116094,1718118654520,-500.0,0.00024657,2]
[329116095,1718118654531,-500.0,0.00024657,2]
[329116096,1718118654542,-500.0,0.00024657,2]
[329116097,1718118654552,-500.0,0.00024657,2]
[329116098,1718118654563,-2080.86,0.00024657,2]
[329116099,1718118654574,-1786.16,0.00024657,2]
[329116100,1718118654584,-166.951655,0.00024657,7]
[329116101,1718118654595,-1548.4,0.00024657,2]
[329116102,1718118654610,-500.0,0.00024657,2]
[329116103,1718118654621,-500.0,0.00024657,2]
[329116104,1718118654631,-500.0,0.00024657,2]
[329116105,1718118654642,-161.150241,0.00024657,7]
[329116106,1718118654653,-3054.12,0.00024657,2]
[329116107,1718118654675,-500.0,0.00024657,2]
[329116108,1718118654685,-2384.990728,0.00024657,7]
[329116109,1718118654695,-2384.990728,0.00024657,7]
[329116110,1718118654705,-593.19,0.00024657,2]
[329116111,1718118654716,-500.0,0.00024657,2]
[329116112,1718118654727,-505.57375567,0.00024657,2]
[329116113,1718118654737,-626.82,0.00024657,2]
[329116114,1718118654748,-504.37307725,0.00024657,2]
[329116115,1718118654758,-500.0,0.00024657,2]
[329116116,1718118654769,-151.0,0.00024657,7]
[329116117,1718118654780,-151.0,0.00024657,7]
[329116118,1718118654791,-151.0,0.00024657,7]
[329116119,1718118654801,-151.0,0.00024657,7]
[329116120,1718118654812,-574.37,0.00024657,2]
[329116121,1718118654823,-151.0,0.00024657,7]
[329116122,1718118654835,-500.0,0.00024657,2]
[329116123,1718118654852,-4124.51,0.00024657,2]
[329116124,1718118654868,-500.0,0.00024657,2]
[329116125,1718118654879,-500.0,0.00024657,2]
[329116126,1718118654890,-1000.16,0.00024657,2]
[329116127,1718118654900,-500.0,0.00024657,2]
[329116128,1718118654910,-500.0,0.00024657,2]
[329116129,1718118654921,-762.44,0.00024657,2]
[329116130,1718118654931,-500.0,0.00024657,2]
[329116131,1718118654942,-1183.66,0.00024657,2]
[329116132,1718118654952,-500.0,0.00024657,2]
[329116133,1718118654963,-500.0,0.00024657,2]
[329116134,1718118654974,-1931.22,0.00024657,2]
[329116135,1718118654984,-539.7,0.00024657,2]
[329116136,1718118654995,-4351.71,0.00024657,2]
[329116137,1718118655005,-3012.53,0.00024657,2]
[329116138,1718118655016,-500.0,0.00024657,2]
[329116139,1718118655026,-4178.73,0.00024657,2]
[329116140,1718118655036,-500.0,0.00024657,2]
[329116141,1718118655046,-500.0,0.00024657,2]
[329116142,1718118655057,-630.97,0.00024657,2]
[329116143,1718118655067,-4842.32,0.00024657,2]
[329116144,1718118655077,-151.0,0.00024657,7]
[329116145,1718118655088,-151.0,0.00024657,7]
[329116146,1718118655098,-2384.990728,0.00024657,7]
[329116147,1718118655109,-500.0,0.00024657,2]
[329116148,1718118655121,-2654.76,0.00024657,2]
[329116149,1718118655135,-151.0,0.00024657,7]
[329116150,1718118655147,-2384.990728,0.00024657,7]
[329116151,1718118655157,-151.0,0.00024657,7]
[329116152,1718118655167,-1158.73,0.00024657,2]
[329116153,1718118655190,-3593.43,0.00024657,2]
[329116154,1718118655201,-151.0,0.00024657,7]
[329116155,1718118655211,-151.0,0.00024657,7]
[329116156,1718118655221,-1889.55,0.00024657,2]
[329116157,1718118655231,-1142.28,0.00024657,2]
[329116158,1718118655241,-500.0,0.00024657,2]
[329116159,1718118655250,-2310.47,0.00024657,2]
[329116160,1718118655260,-537.76,0.00024657,2]
[329116161,1718118655271,-1533.02,0.00024657,2]
[329116162,1718118655280,-500.0,0.00024657,2]
[329116163,1718118655290,-223.708269,0.00024657,7]
[329116164,1718118655299,-2698.93,0.00024657,2]
[329116165,1718118655309,-500.0,0.00024657,2]
[329116166,1718118655320,-508.97482148,0.00024657,2]
[329116167,1718118655334,-223.708269,0.00024657,7]
[329116168,1718118655343,-915.4,0.00024657,2]
[329116169,1718118655357,-500.0,0.00024657,2]
[329116170,1718118655368,-672.79,0.00024657,2]
[329116171,1718118655377,-500.0,0.00024657,2]
[329116172,1718118655386,-1583.65,0.00024657,2]
[329116173,1718118655396,-16046.45,0.00024657,2]
[329116174,1718118655409,-6029.53,0.00024657,2]
[329116175,1718118655419,-1648.48945565,0.00024657,2]
[329116176,1718118655434,-959.63054435,0.00024657,2]
[329116177,1718118655444,-189.1474761,0.00024657,2]